lending/lending_fUSD_20250121
["ID","MTS","AMOUNT","RATE_DAILY","PERIOD"]
[349773430,1737420652383,-500.0,0.0002,2]
[349773431,1737420652393,-500.0,0.0002,2]
[349773432,1737420652403,-583.33,0.0002,2]
[349773433,1737420652412,-500.0,0.0002,2]
[349773434,1737420652426,-604.16,0.0002,2]
[349773435,1737420652435,-500.0,0.0002,2]
[349773436,1737420652446,-664.29,0.0002,2]
[349773437,1737420652455,-500.0,0.0002,2]
[349773438,1737420652465,-500.0,0.0002,2]
[349773439,1737420652475,-500.0,0.0002,2]
[349773440,1737420652484,-500.0,0.0002,2]
[349773441,1737420652493,-500.0,0.0002,2]
[349773442,1737420652503,-500.0,0.0002,2]
[349773443,1737420652512,-500.0,0.0002,2]
[349773444,1737420652522,-500.0,0.0002,2]
[349773445,1737420652532,-500.0,0.0002,2]
[349773446,1737420652541,-500.0,0.0002,2]
[349773447,1737420652550,-560.89,0.0002,2]
[349773448,1737420652560,-500.0,0.0002,2]
[349773449,1737420652569,-500.0,0.0002,2]
[349773450,1737420652578,-500.0,0.0002,2]
[349773451,1737420652587,-500.0,0.0002,2]
[349773452,1737420652597,-500.0,0.0002,2]
[349773453,1737420652606,-500.0,0.0002,2]
[349773454,1737420652615,-500.0,0.0002,2]
[349773455,1737420652625,-500.0,0.0002,2]
[349773456,1737420652634,-588.71,0.0002,2]
[349773457,1737420652644,-500.0,0.0002,2]
[349773458,1737420652653,-241.7257082,0.0002,2]
[349773459,1737420652663,-500.0,0.0002,2]
[349773460,1737420652675,-500.0,0.0002,2]
[349773461,1737420652685,-500.0,0.0002,2]
[349773462,1737420652696,-500.0,0.0002,2]
[349773463,1737420652705,-472.02609748,0.0002,2]
[349773464,1737420652715,-500.0,0.0002,2]
[349773465,1737420652723,-1697.86,0.0002,2]
[349773466,1737420652733,-500.0,0.0002,2]
[349773467,1737420652742,-500.0,0.0002,2]
[349773468,1737420652751,-500.0,0.0002,2]
[349773469,1737420652760,-659.43,0.0002,2]
[349773470,1737420652769,-500.0,0.0002,2]
[349773471,1737420652778,-500.0,0.0002,2]
[349773472,1737420652788,-500.0,0.0002,2]
[349773473,1737420652797,-716.849871,0.0002,2]
[349773474,1737420652806,-500.0,0.0002,2]
[349773475,1737420652816,-500.0,0.0002,2]
[349773476,1737420652941,-500.0,0.0002,2]
[349773477,1737420652951,-500.0,0.0002,2]
[349773478,1737420652960,-500.0,0.0002,2]
[349773479,1737420652969,-500.0,0.0002,2]
[349773480,1737420652980,-506.96,0.0002,2]
[349773481,1737420652988,-1515.28,0.0002,2]
[349773482,1737420652997,-500.0,0.0002,2]
[349773483,1737420653006,-500.0,0.0002,2]
[349773484,1737420653016,-487.986546,0.0002,2]
[349773485,1737420653025,-500.0,0.0002,2]
[349773486,1737420653035,-500.0,0.0002,2]
[349773487,1737420653043,-500.0,0.0002,2]
[349773488,1737420653053,-500.0,0.0002,2]
[349773489,1737420653062,-500.0,0.0002,2]
[349773490,1737420653071,-500.0,0.0002,2]
[349773491,1737420653081,-500.0,0.0002,2]
[349773492,1737420653091,-500.0,0.0002,2]
[349773493,1737420653101,-1653.02,0.0002,2]
[349773494,1737420653110,-845.58,0.0002,2]
[349773495,1737420653119,-500.0,0.0002,2]
[349773496,1737420653128,-500.0,0.0002,2]
[349773497,1737420653138,-500.0,0.0002,2]
[349773498,1737420653148,-500.0,0.0002,2]
[349773499,1737420653158,-500.0,0.0002,2]
[349773500,1737420653168,-1027.64,0.0002,2]
[349773501,1737420653178,-969.02,0.0002,2]
[349773502,1737420653187,-500.0,0.0002,2]
[349773503,1737420653196,-500.0,0.0002,2]
[349773504,1737420653205,-1967.24,0.0002,2]
[349773505,1737420653219,-1111.37,0.0002,2]
[349773506,1737420653228,-500.0,0.0002,2]
[349773507,1737420653237,-500.0,0.0002,2]
[349773508,1737420653246,-898.19,0.0002,2]
[349773509,1737420653257,-500.0,0.0002,2]
[349773510,1737420653266,-1226.71,0.0002,2]
[349773511,1737420653275,-500.0,0.0002,2]
[349773512,1737420653285,-652.51,0.0002,2]
[349773513,1737420653295,-619.63,0.0002,2]
[349773514,1737420653304,-1210.94,0.0002,2]
[349773515,1737420653313,-500.0,0.0002,2]
[349773516,1737420653322,-1000.0,0.0002,14]
[349773517,1737420653331,-801.67,0.0002,2]
[349773518,1737420653342,-500.0,0.0002,2]
[349773519,1737420653350,-500.0,0.0002,2]
[349773520,1737420653361,-500.0,0.0002,2]
[349773521,1737420653370,-2052.29,0.0002,2]
[349773522,1737420653379,-513.12,0.0002,2]
[349773523,1737420653389,-1991.53,0.0002,2]
[349773524,1737420653398,-500.0,0.0002,2]
[349773525,1737420653407,-1181.16,0.0002,2]
[349773526,1737420653415,-1416.54,0.0002,2]
[349773527,1737420653427,-500.0,0.0002,2]
[349773528,1737420653436,-500.0,0.0002,2]
[349773529,1737420653445,-500.0,0.0002,2]
[349773530,1737420653454,-2319.77,0.0002,2]
[349773531,1737420653463,-780.49,0.0002,2]
[349773532,1737420653472,-2547.64,0.0002,2]
[349773533,1737420653481,-500.0,0.0002,2]
[349773534,1737420653491,-556.06,0.0002,2]
[349773535,1737420653500,-1503.59,0.0002,2]
[349773536,1737420653509,-412.33945152,0.0002,2]
[349773537,1737420653518,-826.66,0.0002,2]
[349773538,1737420653527,-500.0,0.0002,2]
[349773539,1737420653536,-500.0,0.0002,2]
[349773540,1737420653544,-1204.67,0.0002,2]
[349773541,1737420653553,-883.4,0.0002,2]
[349773542,1737420653562,-500.0,0.0002,2]
[349773543,1737420653571,-500.0,0.0002,2]
[349773544,1737420653580,-500.0,0.0002,2]
[349773545,1737420653589,-500.0,0.0002,2]
[349773546,1737420653598,-1126.47,0.0002,2]
[349773547,1737420653607,-633.24,0.0002,2]
[349773548,1737420653616,-2671.26,0.0002,2]
[349773549,1737420653626,-500.0,0.0002,2]
[349773550,1737420653636,-2393.16,0.0002,2]
[349773551,1737420653644,-500.0,0.0002,2]
[349773552,1737420653657,-603.06,0.0002,2]
[349773553,1737420653675,-192.7456153,0.0002,2]
[349773554,1737420653685,-500.0,0.0002,2]
[349773555,1737420653694,-500.0,0.0002,2]
[349773556,1737420653704,-500.0,0.0002,2]
[349773557,1737420653713,-295.01119464,0.0002,2]
[349773558,1737420653722,-500.0,0.0002,2]
[349773559,1737420653731,-500.0,0.0002,2]
[349773560,1737420653740,-500.0,0.0002,2]
[349773561,1737420653748,-582.27,0.0002,2]
[349773562,1737420653758,-1857.25,0.0002,2]
[349773563,1737420653767,-2242.43,0.0002,2]
[349773564,1737420653776,-1000.0,0.00020021,2]
[349773565,1737420653786,-230.81181001,0.00020038,2]
[349773566,1737420653795,-230.81181001,0.00020107,2]
[349773567,1737420653804,-171.77,0.00020111,2]
[349773568,1737420653814,-673.02,0.0002014,2]
[349773569,1737420653823,-500.0,0.0002014,2]
[349773570,1737420653831,-500.0,0.0002014,2]
[349773571,1737420653841,-1827.7576,0.00020173,2]
[349773572,1737420653850,-1482.97,0.00020173,2]
[349773573,1737420653859,-500.0,0.00020173,2]
[349773574,1737420653868,-1199.3,0.00020173,2]
[349773575,1737420653876,-551.03,0.00020173,2]
[349773576,1737420653885,-2292.14,0.00020173,2]
[349773577,1737420653894,-500.0,0.00020173,2]
[349773578,1737420653903,-500.0,0.00020173,2]
[349773579,1737420653912,-616.27,0.00020173,2]
[349773580,1737420653923,-500.0,0.00020173,2]
[349773581,1737420653932,-500.0,0.00020173,2]
[349773582,1737420653941,-500.0,0.00020173,2]
[349773583,1737420653950,-753.81,0.00020173,2]
[349773584,1737420653959,-597.97,0.00020173,2]
[349773585,1737420653969,-750.01,0.00020173,2]
[349773586,1737420653979,-652.84,0.00020173,2]
[349773587,1737420653988,-1174.84,0.00020173,2]
[349773588,1737420653998,-2187.02,0.00020173,2]
[349773589,1737420654007,-848.77,0.00020173,2]
[349773590,1737420654017,-1671.37,0.00020173,2]
[349773591,1737420654026,-3969.98,0.00020173,2]
[349773592,1737420654035,-500.0,0.00020173,2]
[349773593,1737420654044,-634.19,0.00020173,2]
[349773594,1737420654053,-3283.45,0.00020173,2]
[349773595,1737420654063,-1093.65,0.00020173,2]
[349773596,1737420654072,-654.71,0.00020173,2]
[349773597,1737420654081,-2167.64,0.00020173,2]
[349773598,1737420654090,-636.22,0.00020173,2]
[349773599,1737420654105,-500.0,0.00020173,2]
[349773600,1737420654116,-709.4,0.00020173,2]
[349773601,1737420654126,-1498.52,0.00020173,2]
[349773602,1737420654136,-1044.91,0.00020173,2]
[349773603,1737420654147,-1345.86,0.00020173,2]
[349773604,1737420654159,-500.0,0.00020173,2]
[349773605,1737420654176,-966.72,0.00020173,2]
[349773606,1737420654187,-1000.0,0.00020173,2]
[349773607,1737420654197,-1312.72,0.00020173,2]
[349773608,1737420654207,-615.08,0.00020173,2]
[349773609,1737420654221,-1967.56,0.00020173,2]
[349773610,1737420654233,-230.81181001,0.00020176,2]
[349773611,1737420654242,-19075.48069027,0.00020179,2]
[349773612,1737420654252,-2016.22379923,0.00020229,2]
[349773613,1737420654263,-654.67928511,0.00020233,2]
[349773614,1737420654274,-230.81181001,0.00020245,2]
[349773615,1737420654286,-500.0,0.00020273,2]
[349773616,1737420654297,-500.0,0.00020273,2]
[349773617,1737420654309,-500.0,0.00020273,2]
[349773618,1737420654321,-500.0,0.00020273,2]
[349773619,1737420654331,-465.07053702,0.00020273,2]
[349773620,1737420654341,-500.0,0.00020273,2]
[349773621,1737420654352,-193.88,0.00020273,2]
[349773622,1737420654362,-500.0,0.00020273,2]
[349773623,1737420654372,-500.0,0.00020273,2]
[349773624,1737420654383,-500.0,0.00020273,2]
[349773625,1737420654393,-161.12690394,0.00020273,2]
[349773626,1737420654403,-500.0,0.00020273,2]
[349773627,1737420654413,-500.0,0.00020273,2]
[349773628,1737420654430,-500.0,0.00020273,2]
[349773629,1737420654441,-500.0,0.00020273,2]
[349773630,1737420654451,-500.0,0.00020273,2]
[349773631,1737420654461,-500.0,0.00020273,2]
[349773632,1737420654475,-500.0,0.00020273,2]
[349773633,1737420654485,-541.66,0.00020273,2]
[349773634,1737420654494,-500.0,0.00020273,2]
[349773635,1737420654504,-500.0,0.00020273,2]
[349773636,1737420654514,-500.0,0.00020273,2]
[349773637,1737420654524,-1183.9,0.00020273,2]
[349773638,1737420654533,-505.3,0.00020273,2]
[349773639,1737420654543,-500.0,0.00020273,2]
[349773640,1737420654553,-500.0,0.00020273,2]
[349773641,1737420654562,-500.0,0.00020273,2]
[349773642,1737420654572,-500.0,0.00020273,2]
[349773643,1737420654582,-244.64471872,0.00020273,2]
[349773644,1737420654591,-500.0,0.00020273,2]
[349773645,1737420654601,-500.0,0.00020273,2]
[349773646,1737420654611,-500.0,0.00020273,2]
[349773647,1737420654621,-500.0,0.00020273,2]
[349773648,1737420654630,-500.0,0.00020273,2]
[349773649,1737420654639,-500.0,0.00020273,2]
[349773650,1737420654649,-500.0,0.00020273,2]
[349773651,1737420654658,-500.0,0.00020273,2]
[349773652,1737420654668,-500.0,0.00020273,2]
[349773653,1737420654683,-500.0,0.00020273,2]
[349773654,1737420654692,-500.0,0.00020273,2]
[349773655,1737420654703,-500.0,0.00020273,2]
[349773656,1737420654713,-500.0,0.00020273,2]
[349773657,1737420654723,-500.0,0.00020273,2]
[349773658,1737420654733,-500.0,0.00020273,2]
[349773659,1737420654743,-500.0,0.00020273,2]
[349773660,1737420654752,-501.19,0.00020273,2]
[349773661,1737420654761,-500.0,0.00020273,2]
[349773662,1737420654771,-500.0,0.00020273,2]
[349773663,1737420654780,-500.0,0.00020273,2]
[349773664,1737420654790,-500.0,0.00020273,2]
[349773665,1737420654799,-500.0,0.00020273,2]
[349773666,1737420654808,-500.0,0.00020273,2]
[349773667,1737420654817,-500.0,0.00020273,2]
[349773668,1737420654827,-500.0,0.00020273,2]
[349773669,1737420654836,-500.0,0.00020273,2]
[349773670,1737420654845,-500.0,0.00020273,2]
[349773671,1737420654854,-500.0,0.00020273,2]
[349773672,1737420654863,-500.0,0.00020273,2]
[349773673,1737420654872,-500.0,0.00020273,2]
[349773674,1737420654882,-500.0,0.00020273,2]
[349773675,1737420654891,-202.68955737,0.00020273,2]
[349773676,1737420654900,-500.0,0.00020273,2]
[349773677,1737420654910,-500.0,0.00020273,2]
[349773678,1737420654922,-500.0,0.00020273,2]
[349773679,1737420654931,-500.0,0.00020273,2]
[349773680,1737420654941,-500.0,0.00020273,2]
[349773681,1737420654950,-500.0,0.00020273,2]
[349773682,1737420654960,-500.0,0.00020273,2]
[349773683,1737420654969,-554.74722128,0.00020273,2]
[349773684,1737420654979,-500.0,0.00020273,2]
[349773685,1737420654989,-500.0,0.00020273,2]
[349773686,1737420654998,-500.0,0.00020273,2]
[349773687,1737420655008,-572.63,0.00020273,2]
[349773688,1737420655018,-500.0,0.00020273,2]
[349773689,1737420655027,-500.0,0.00020273,2]
[349773690,1737420655037,-500.0,0.00020273,2]
[349773691,1737420655047,-500.0,0.00020273,2]
[349773692,1737420655165,-500.0,0.00020273,2]
[349773693,1737420655177,-500.0,0.00020273,2]
[349773694,1737420655186,-500.0,0.00020273,2]
[349773695,1737420655195,-500.0,0.00020273,2]
[349773696,1737420655204,-500.0,0.00020273,2]
[349773697,1737420655218,-500.0,0.00020273,2]
[349773698,1737420655227,-500.0,0.00020273,2]
[349773699,1737420655236,-583.33,0.00020273,2]
[349773700,1737420655245,-500.0,0.00020273,2]
[349773701,1737420655255,-569.92,0.00020273,2]
[349773702,1737420655264,-604.16,0.00020273,2]
[349773703,1737420655274,-500.0,0.00020273,2]
[349773704,1737420655284,-664.29,0.00020273,2]
[349773705,1737420655293,-519.53250888,0.00020273,2]
[349773706,1737420655303,-500.0,0.00020273,2]
[349773707,1737420655314,-155.29931331,0.00020273,2]
[349773708,1737420655323,-500.0,0.00020273,2]
[349773709,1737420655332,-500.0,0.00020273,2]
[349773710,1737420655342,-500.0,0.00020273,2]
[349773711,1737420655351,-500.0,0.00020273,2]
[349773712,1737420655360,-500.0,0.00020273,2]
[349773713,1737420655370,-500.0,0.00020273,2]
[349773714,1737420655379,-500.0,0.00020273,2]
[349773715,1737420655389,-687.02,0.00020273,2]
[349773716,1737420655399,-500.0,0.00020273,2]
[349773717,1737420655409,-500.0,0.00020273,2]
[349773718,1737420655418,-500.0,0.00020273,2]
[349773719,1737420655430,-500.0,0.00020273,2]
[349773720,1737420655439,-500.0,0.00020273,2]
[349773721,1737420655448,-500.0,0.00020273,2]
[349773722,1737420655458,-500.0,0.00020273,2]
[349773723,1737420655468,-500.0,0.00020273,2]
[349773724,1737420655477,-560.89,0.00020273,2]
[349773725,1737420655487,-500.0,0.00020273,2]
[349773726,1737420655496,-500.0,0.00020273,2]
[349773727,1737420655505,-500.0,0.00020273,2]
[349773728,1737420655514,-500.0,0.00020273,2]
[349773729,1737420655523,-500.0,0.00020273,2]
[349773730,1737420655532,-668.45,0.00020273,2]
[349773731,1737420655541,-650.98,0.00020273,2]
[349773732,1737420655550,-500.0,0.00020273,2]
[349773733,1737420655559,-563.68,0.00020273,2]
[349773734,1737420655568,-500.0,0.00020273,2]
[349773735,1737420655577,-500.0,0.00020273,2]
[349773736,1737420655586,-500.0,0.00020273,2]
[349773737,1737420655595,-588.71,0.00020273,2]
[349773738,1737420655604,-500.0,0.00020273,2]
[349773739,1737420655613,-566.19,0.00020273,2]
[349773740,1737420655622,-500.0,0.00020273,2]
[349773741,1737420655631,-500.0,0.00020273,2]
[349773742,1737420655640,-500.0,0.00020273,2]
[349773743,1737420655649,-500.0,0.00020273,2]
[349773744,1737420655658,-500.0,0.00020273,2]
[349773745,1737420655667,-529.83,0.00020273,2]
[349773746,1737420655680,-500.0,0.00020273,2]
[349773747,1737420655689,-1697.86,0.00020273,2]
[349773748,1737420655699,-500.0,0.00020273,2]
[349773749,1737420655709,-1013.61,0.00020273,2]
[349773750,1737420655718,-500.0,0.00020273,2]
[349773751,1737420655728,-500.0,0.00020273,2]
[349773752,1737420655737,-564.16,0.00020273,2]
[349773753,1737420655746,-500.0,0.00020273,2]
[349773754,1737420655756,-659.43,0.00020273,2]
[349773755,1737420655765,-500.0,0.00020273,2]
[349773756,1737420655775,-606.85,0.00020273,2]
[349773757,1737420655785,-500.0,0.00020273,2]
[349773758,1737420655794,-796.12,0.00020273,2]
[349773759,1737420655804,-500.0,0.00020273,2]
[349773760,1737420655813,-716.849871,0.00020273,2]
[349773761,1737420655823,-500.0,0.00020273,2]
[349773762,1737420655833,-500.0,0.00020273,2]
[349773763,1737420655843,-500.0,0.00020273,2]
[349773764,1737420655852,-500.0,0.00020273,2]
[349773765,1737420655862,-500.0,0.00020273,2]
[349773766,1737420655871,-500.0,0.00020273,2]
[349773767,1737420655881,-1154.51,0.00020273,2]
[349773768,1737420655892,-506.32862081,0.00020273,2]
[349773769,1737420655902,-501.81632654,0.00020273,2]
[349773770,1737420655912,-500.0,0.00020273,2]
[349773771,1737420655925,-506.96,0.00020273,2]
[349773772,1737420655937,-2225.1,0.00020273,2]
[349773773,1737420655947,-1515.28,0.00020273,2]
[349773774,1737420655956,-882.93,0.00020273,2]
[349773775,1737420655967,-500.0,0.00020273,2]
[349773776,1737420655979,-487.986546,0.00020273,2]
[349773777,1737420655989,-1343.47,0.00020273,2]
[349773778,1737420655999,-881.44,0.00020273,2]
[349773779,1737420656009,-500.0,0.00020273,2]
[349773780,1737420656018,-2159.62,0.00020273,2]
[349773781,1737420656028,-500.0,0.00020273,2]
[349773782,1737420656037,-509.12970002,0.00020273,2]
[349773783,1737420656046,-500.0,0.00020273,2]
[349773784,1737420656056,-500.0,0.00020273,2]
[349773785,1737420656065,-500.0,0.00020273,2]
[349773786,1737420656074,-1653.02,0.00020273,2]
[349773787,1737420656083,-845.58,0.00020273,2]
[349773788,1737420656093,-500.0,0.00020273,2]
[349773789,1737420656102,-500.0,0.00020273,2]
[349773790,1737420656112,-3061.98,0.00020273,2]
[349773791,1737420656121,-500.0,0.00020273,2]
[349773792,1737420656130,-610.57,0.00020273,2]
[349773793,1737420656139,-500.0,0.00020273,2]
[349773794,1737420656148,-1451.25,0.00020273,2]
[349773795,1737420656157,-1027.64,0.00020273,2]
[349773796,1737420656166,-500.0,0.00020273,2]
[349773797,1737420656179,-969.02,0.00020273,2]
[349773798,1737420656188,-500.0,0.00020273,2]
[349773799,1737420656198,-1967.24,0.00020273,2]
[349773800,1737420656207,-1111.37,0.00020273,2]
[349773801,1737420656217,-500.0,0.00020273,2]
[349773802,1737420656229,-500.0,0.00020273,2]
[349773803,1737420656239,-500.0,0.00020273,2]
[349773804,1737420656249,-898.19,0.00020273,2]
[349773805,1737420656258,-980.84,0.00020273,2]
[349773806,1737420656267,-500.0,0.00020273,2]
[349773807,1737420656278,-2840.37,0.00020273,2]
[349773808,1737420656287,-1226.71,0.00020273,2]
[349773809,1737420656296,-500.0,0.00020273,2]
[349773810,1737420656307,-652.51,0.00020273,2]
[349773811,1737420656316,-619.63,0.00020273,2]
[349773812,1737420656325,-958.08,0.00020273,2]
[349773813,1737420656334,-1204.91,0.00020273,2]
[349773814,1737420656343,-1210.94,0.00020273,2]
[349773815,1737420656352,-500.0,0.00020273,2]
[349773816,1737420656361,-801.67,0.00020273,2]
[349773817,1737420656370,-500.0,0.00020273,2]
[349773818,1737420656380,-500.0,0.00020273,2]
[349773819,1737420656393,-500.0,0.00020273,2]
[349773820,1737420656406,-997.28,0.00020273,2]
[349773821,1737420656415,-2052.29,0.00020273,2]
[349773822,1737420656428,-1712.99,0.00020273,2]
[349773823,1737420656437,-513.12,0.00020273,2]
[349773824,1737420656446,-1991.53,0.00020273,2]
[349773825,1737420656455,-500.0,0.00020273,2]
[349773826,1737420656464,-1181.16,0.00020273,2]
[349773827,1737420656473,-1416.54,0.00020273,2]
[349773828,1737420656482,-500.0,0.00020273,2]
[349773829,1737420656491,-3603.52,0.00020273,2]
[349773830,1737420656501,-500.0,0.00020273,2]
[349773831,1737420656510,-500.0,0.00020273,2]
[349773832,1737420656519,-2319.77,0.00020273,2]
[349773833,1737420656528,-780.49,0.00020273,2]
[349773834,1737420656537,-1254.23,0.00020273,2]
[349773835,1737420656546,-500.0,0.00020273,2]
[349773836,1737420656558,-500.0,0.00020273,2]
[349773837,1737420656567,-2547.64,0.00020273,2]
[349773838,1737420656576,-500.0,0.00020273,2]
[349773839,1737420656585,-500.0,0.00020273,2]
[349773840,1737420656594,-556.06,0.00020273,2]
[349773841,1737420656603,-1503.59,0.00020273,2]
[349773842,1737420656612,-500.0,0.00020273,2]
[349773843,1737420656621,-500.0,0.00020273,2]
[349773844,1737420656630,-500.0,0.00020273,2]
[349773845,1737420656639,-500.0,0.00020273,2]
[349773846,1737420656648,-826.66,0.00020273,2]
[349773847,1737420656657,-500.0,0.00020273,2]
[349773848,1737420656667,-1445.2,0.00020273,2]
[349773849,1737420656678,-549.87,0.00020273,2]
[349773850,1737420656687,-1204.67,0.00020273,2]
[349773851,1737420656696,-883.4,0.00020273,2]
[349773852,1737420656706,-500.0,0.00020273,2]
[349773853,1737420656715,-500.0,0.00020273,2]
[349773854,1737420656725,-500.0,0.00020273,2]
[349773855,1737420656734,-500.0,0.00020273,2]
[349773856,1737420656743,-1126.47,0.00020273,2]
[349773857,1737420656752,-500.0,0.00020273,2]
[349773858,1737420656762,-633.24,0.00020273,2]
[349773859,1737420656771,-2671.26,0.00020273,2]
[349773860,1737420656780,-500.0,0.00020273,2]
[349773861,1737420656790,-693.42,0.00020273,2]
[349773862,1737420656799,-1915.82,0.00020273,2]
[349773863,1737420656809,-500.0,0.00020273,2]
[349773864,1737420656818,-500.0,0.00020273,2]
[349773865,1737420656828,-2393.16,0.00020273,2]
[349773866,1737420656837,-500.0,0.00020273,2]
[349773867,1737420656847,-513.39,0.00020273,2]
[349773868,1737420656857,-603.06,0.00020273,2]
[349773869,1737420656868,-1417.44,0.00020273,2]
[349773870,1737420656878,-500.0,0.00020273,2]
[349773871,1737420656888,-500.0,0.00020273,2]
[349773872,1737420656899,-500.0,0.00020273,2]
[349773873,1737420656909,-500.0,0.00020273,2]
[349773874,1737420656918,-500.0,0.00020273,2]
[349773875,1737420656931,-500.0,0.00020273,2]
[349773876,1737420656941,-500.0,0.00020273,2]
[349773877,1737420656951,-500.0,0.00020273,2]
[349773878,1737420656962,-582.27,0.00020273,2]
[349773879,1737420656971,-500.0,0.00020273,2]
[349773880,1737420656981,-1857.25,0.00020273,2]
[349773881,1737420656991,-2242.43,0.00020273,2]
[349773882,1737420657002,-230.81181001,0.00020314,2]
[349773883,1737420657011,-245774.57996052,0.00020347,2]
[349773884,1737420657020,-230.81181001,0.00020383,2]
[349773885,1737420657030,-673.02,0.00020414,2]
[349773886,1737420657039,-500.0,0.00020414,2]
[349773887,1737420657049,-500.0,0.00020414,2]
[349773888,1737420657059,-1482.97,0.00020447,2]
[349773889,1737420657069,-500.0,0.00020447,2]
[349773890,1737420657079,-1199.3,0.00020447,2]
[349773891,1737420657194,-551.03,0.00020447,2]
[349773892,1737420657205,-2292.14,0.00020447,2]
[349773893,1737420657216,-500.0,0.00020447,2]
[349773894,1737420657226,-500.0,0.00020447,2]
[349773895,1737420657235,-500.0,0.00020447,2]
[349773896,1737420657244,-500.0,0.00020447,2]
[349773897,1737420657253,-500.0,0.00020447,2]
[349773898,1737420657264,-753.81,0.00020447,2]
[349773899,1737420657274,-597.97,0.00020447,2]
[349773900,1737420657283,-750.01,0.00020447,2]
[349773901,1737420657292,-652.84,0.00020447,2]
[349773902,1737420657302,-1174.84,0.00020447,2]
[349773903,1737420657311,-2187.02,0.00020447,2]
[349773904,1737420657320,-848.77,0.00020447,2]
[349773905,1737420657330,-1671.37,0.00020447,2]
[349773906,1737420657339,-3969.98,0.00020447,2]
[349773907,1737420657348,-500.0,0.00020447,2]
[349773908,1737420657359,-634.19,0.00020447,2]
[349773909,1737420657369,-3283.45,0.00020447,2]
[349773910,1737420657379,-1093.65,0.00020447,2]
[349773911,1737420657390,-654.71,0.00020447,2]
[349773912,1737420657399,-2167.64,0.00020447,2]
[349773913,1737420657409,-636.22,0.00020447,2]
[349773914,1737420657418,-500.0,0.00020447,2]
[349773915,1737420657431,-709.4,0.00020447,2]
[349773916,1737420657441,-1498.52,0.00020447,2]
[349773917,1737420657451,-1044.91,0.00020447,2]
[349773918,1737420657460,-1345.86,0.00020447,2]
[349773919,1737420657471,-500.0,0.00020447,2]
[349773920,1737420657480,-966.72,0.00020447,2]
[349773921,1737420657490,-1000.0,0.00020447,2]
[349773922,1737420657499,-1312.72,0.00020447,2]
[349773923,1737420657510,-615.08,0.00020447,2]
[349773924,1737420657520,-1967.56,0.00020447,2]
[349773925,1737420657529,-230.81181001,0.00020452,2]
[349773926,1737420657539,-19075.48069027,0.00020466,2]
[349773927,1737420657547,-500.0,0.00020518,2]
[349773928,1737420657557,-757.09,0.00020518,2]
[349773929,1737420657566,-500.0,0.00020518,2]